[Event "Titled Tuesday Blitz May 24 Late 2022"]
[White "Moral Garcia, Serafin"]
[Black "Stojanovski, Sandi"]
[WhiteFideId "2201925"]
[BlackFideId "1403249"]
[WhiteElo "2228"]
[BlackElo "2349"]
[Result "1-0"]
[Round "07"]
[TimeControl "180+1"]
[Date "2022.05.25"]
[WhiteClock "0:00:47"]
[BlackClock "0:00:01"]

1. e4 {[%clk 0:03:00]}  Nf6 {[%clk 0:03:00]} 2. e5 {[%clk 0:03:00]}  Nd5 {[%clk 0:03:01]} 3. c4 {[%clk 0:03:01]}  Nb6 {[%clk 0:03:00]} 4. d3 {[%clk 0:03:01]}  d6 {[%clk 0:03:00]} 5. exd6 {[%clk 0:03:01]}  exd6 {[%clk 0:02:55]} 6. Nc3 {[%clk 0:03:01]}  Be7 {[%clk 0:02:56]} 7. Be3 {[%clk 0:03:01]}  O-O {[%clk 0:02:56]} 8. g3 {[%clk 0:03:00]}  d5 {[%clk 0:02:50]} 9. Bxb6 {[%clk 0:02:57]}  axb6 {[%clk 0:02:41]} 10. Nxd5 {[%clk 0:02:56]}  Re8 {[%clk 0:02:32]} 11. Be2 {[%clk 0:02:51]}  Nc6 {[%clk 0:02:21]} 12. Kf1 {[%clk 0:02:45]}  Bc5 {[%clk 0:01:41]} 13. Bg4 {[%clk 0:02:41]}  Nd4 {[%clk 0:00:58]} 14. Bxc8 {[%clk 0:02:28]}  Qxc8 {[%clk 0:00:48]} 15. Kg2 {[%clk 0:02:01]}  c6 {[%clk 0:00:48]} 16. Ne3 {[%clk 0:01:59]}  Qe6 {[%clk 0:00:43]} 17. Nf3 {[%clk 0:01:49]}  Rad8 {[%clk 0:00:43]} 18. Nxd4 {[%clk 0:01:43]}  Bxd4 {[%clk 0:00:42]} 19. Re1 {[%clk 0:01:40]}  Bxb2 {[%clk 0:00:41]} 20. Rb1 {[%clk 0:01:39]}  Bc3 {[%clk 0:00:33]} 21. Re2 {[%clk 0:01:35]}  Bd4 {[%clk 0:00:33]} 22. Re1 {[%clk 0:01:30]}  Qg6 {[%clk 0:00:29]} 23. Rb3 {[%clk 0:01:21]}  h5 {[%clk 0:00:28]} 24. h4 {[%clk 0:01:14]}  Re6 {[%clk 0:00:25]} 25. Nc2 {[%clk 0:01:09]}  c5 {[%clk 0:00:14]} 26. Rxe6 {[%clk 0:01:02]}  Qxe6 {[%clk 0:00:15]} 27. Nxd4 {[%clk 0:00:59]}  Rxd4 {[%clk 0:00:15]} 28. Qxh5 {[%clk 0:01:00]}  Qc6+ {[%clk 0:00:11]} 29. Qf3 {[%clk 0:00:59]}  Qa4 {[%clk 0:00:05]} 30. Rxb6 {[%clk 0:00:57]}  Qxa2 {[%clk 0:00:02]} 31. Rxb7 {[%clk 0:00:55]}  f6 {[%clk 0:00:01]} 32. Qh5 {[%clk 0:00:47]} 1-0


[Site "https://www.chess.com"]

[Event "Titled Tuesday Blitz May 24 Late 2022"]
[White "Nazaretyan, Tigran"]
[Black "Rustemov, Alexander"]
[WhiteFideId "24162345"]
[BlackFideId "4119002"]
[WhiteElo "2225"]
[BlackElo "2836"]
[Result "0-1"]
[Round "07"]
[TimeControl "180+1"]
[Date "2022.05.24"]
[WhiteClock "0:00:28"]
[BlackClock "0:01:30"]

1. d4 {[%clk 0:03:00]}  f5 {[%clk 0:02:57]} 2. Nf3 {[%clk 0:03:00]}  Nf6 {[%clk 0:02:58]} 3. g3 {[%clk 0:03:00]}  g6 {[%clk 0:02:58]} 4. Bg2 {[%clk 0:03:01]}  Bg7 {[%clk 0:02:59]} 5. O-O {[%clk 0:03:01]}  O-O {[%clk 0:02:59]} 6. c4 {[%clk 0:03:02]}  d6 {[%clk 0:02:59]} 7. Nc3 {[%clk 0:03:02]}  Nc6 {[%clk 0:03:00]} 8. d5 {[%clk 0:03:00]}  Na5 {[%clk 0:02:59]} 9. Nd2 {[%clk 0:02:50]}  c5 {[%clk 0:02:58]} 10. Rb1 {[%clk 0:02:45]}  e5 {[%clk 0:02:57]} 11. a3 {[%clk 0:02:36]}  b6 {[%clk 0:02:56]} 12. b4 {[%clk 0:02:36]}  Nb7 {[%clk 0:02:56]} 13. e4 {[%clk 0:02:28]}  f4 {[%clk 0:02:53]} 14. f3 {[%clk 0:02:12]}  fxg3 {[%clk 0:02:44]} 15. hxg3 {[%clk 0:02:11]}  Nh5 {[%clk 0:02:44]} 16. Qe1 {[%clk 0:02:07]}  Qg5 {[%clk 0:02:43]} 17. Kh2 {[%clk 0:02:01]}  Bd7 {[%clk 0:02:36]} 18. Nb3 {[%clk 0:02:00]}  Qe7 {[%clk 0:02:35]} 19. bxc5 {[%clk 0:01:47]}  dxc5 {[%clk 0:02:34]} 20. Nb5 {[%clk 0:01:41]}  Bxb5 {[%clk 0:02:31]} 21. cxb5 {[%clk 0:01:41]}  Nd6 {[%clk 0:02:32]} 22. a4 {[%clk 0:01:36]}  Bf6 {[%clk 0:02:29]} 23. f4 {[%clk 0:01:27]}  Rae8 {[%clk 0:02:26]} 24. f5 {[%clk 0:01:00]}  Bg5 {[%clk 0:02:25]} 25. g4 {[%clk 0:00:57]}  Bxc1 {[%clk 0:02:21]} 26. Rxc1 {[%clk 0:00:56]}  Nf4 {[%clk 0:02:21]} 27. Bf3 {[%clk 0:00:53]}  h5 {[%clk 0:02:04]} 28. gxh5 {[%clk 0:00:46]}  gxf5 {[%clk 0:02:03]} 29. exf5 {[%clk 0:00:45]}  Kh8 {[%clk 0:01:47]} 30. Nd2 {[%clk 0:00:35]}  Nd3 {[%clk 0:01:40]} 31. Qe3 {[%clk 0:00:34]}  Qh4+ {[%clk 0:01:40]} 32. Kg1 {[%clk 0:00:31]}  Rg8+ {[%clk 0:01:38]} 33. Bg2 {[%clk 0:00:32]}  Rxg2+ {[%clk 0:01:38]} 34. Kxg2 {[%clk 0:00:31]}  Rg8+ {[%clk 0:01:39]} 35. Kf3 {[%clk 0:00:28]}  Qg4# {[%clk 0:01:30]} 0-1


[Site "https://www.chess.com"]

[Event "Titled Tuesday Blitz May 24 Late 2022"]
[White "Oparin, Grigoriy"]
[Black "Maltsevskaya, Aleksandra"]
[WhiteFideId "24125890"]
[BlackFideId "24174041"]
[WhiteElo "2665"]
[BlackElo "2235"]
[Result "1-0"]
[Round "07"]
[TimeControl "180+1"]
[Date "2022.05.24"]
[WhiteClock "0:00:49"]
[BlackClock "0:00:02"]

1. g3 {[%clk 0:03:00]}  d5 {[%clk 0:02:58]} 2. Bg2 {[%clk 0:03:01]}  c6 {[%clk 0:02:58]} 3. c4 {[%clk 0:03:01]}  e6 {[%clk 0:02:57]} 4. Nf3 {[%clk 0:03:02]}  Nf6 {[%clk 0:02:58]} 5. b3 {[%clk 0:03:02]}  Nbd7 {[%clk 0:02:57]} 6. Bb2 {[%clk 0:03:03]}  Bd6 {[%clk 0:02:57]} 7. O-O {[%clk 0:03:03]}  h5 {[%clk 0:02:54]} 8. h3 {[%clk 0:02:58]}  e5 {[%clk 0:02:44]} 9. cxd5 {[%clk 0:02:54]}  cxd5 {[%clk 0:02:43]} 10. d3 {[%clk 0:02:54]}  Qe7 {[%clk 0:02:39]} 11. Nc3 {[%clk 0:02:53]}  a6 {[%clk 0:02:40]} 12. e3 {[%clk 0:02:52]}  Nb6 {[%clk 0:02:36]} 13. a4 {[%clk 0:02:51]}  Be6 {[%clk 0:02:27]} 14. a5 {[%clk 0:02:51]}  Nbd7 {[%clk 0:02:27]} 15. Ng5 {[%clk 0:02:51]}  Nb8 {[%clk 0:02:21]} 16. Re1 {[%clk 0:02:14]}  Nc6 {[%clk 0:02:19]} 17. e4 {[%clk 0:02:14]}  dxe4 {[%clk 0:02:11]} 18. Nxe6 {[%clk 0:02:13]}  Qxe6 {[%clk 0:02:10]} 19. Nxe4 {[%clk 0:02:12]}  Nxe4 {[%clk 0:02:08]} 20. Rxe4 {[%clk 0:02:13]}  Bc5 {[%clk 0:01:59]} 21. d4 {[%clk 0:02:08]}  Bxd4 {[%clk 0:01:57]} 22. Bxd4 {[%clk 0:02:06]}  Nxd4 {[%clk 0:01:57]} 23. f4 {[%clk 0:01:23]}  Nc6 {[%clk 0:01:56]} 24. fxe5 {[%clk 0:01:21]}  Rd8 {[%clk 0:01:51]} 25. Qe2 {[%clk 0:01:11]}  g6 {[%clk 0:01:39]} 26. Re3 {[%clk 0:01:06]}  Nd4 {[%clk 0:01:31]} 27. Qf2 {[%clk 0:00:59]}  O-O {[%clk 0:01:29]} 28. Qf6 {[%clk 0:00:53]}  Qxf6 {[%clk 0:01:27]} 29. exf6 {[%clk 0:00:54]}  Nc2 {[%clk 0:01:27]} 30. Rae1 {[%clk 0:00:53]}  Nxe1 {[%clk 0:01:25]} 31. Rxe1 {[%clk 0:00:53]}  Rd3 {[%clk 0:01:23]} 32. b4 {[%clk 0:00:50]}  Rxg3 {[%clk 0:01:22]} 33. Re7 {[%clk 0:00:50]}  Rb8 {[%clk 0:01:18]} 34. Kf2 {[%clk 0:00:49]}  Rb3 {[%clk 0:01:18]} 35. Bd5 {[%clk 0:00:49]}  Rb2+ {[%clk 0:01:15]} 36. Ke3 {[%clk 0:00:48]}  Rxb4 {[%clk 0:00:32]} 37. Bxf7+ {[%clk 0:00:48]}  Kf8 {[%clk 0:00:24]} 38. Bxg6 {[%clk 0:00:48]}  Rb3+ {[%clk 0:00:02]} 39. Kf4 {[%clk 0:00:47]}  Rd8 {[%clk 0:00:01]} 40. Rf7+ {[%clk 0:00:47]}  Kg8 {[%clk 0:00:01]} 41. Rg7+ {[%clk 0:00:48]}  Kh8 {[%clk 0:00:02]} 42. Rh7+ {[%clk 0:00:48]}  Kg8 {[%clk 0:00:02]} 43. f7+ {[%clk 0:00:49]}  Kf8 {[%clk 0:00:02]} 44. Rh8+ {[%clk 0:00:50]}  Kg7 {[%clk 0:00:02]} 45. Rxd8 {[%clk 0:00:49]} 1-0


[Site "https://www.chess.com"]

[Event "Titled Tuesday Blitz May 24 Late 2022"]
[White "Przybylski, Wojciech"]
[Black "Kosteniuk, Alexandra"]
[WhiteFideId "1117599"]
[BlackFideId "4128125"]
[WhiteElo "2133"]
[BlackElo "2469"]
[Result "1-0"]
[Round "07"]
[TimeControl "180+1"]
[Date "2022.05.25"]
[WhiteClock "0:00:05"]
[BlackClock "0:00:03"]

1. d4 {[%clk 0:03:00]}  Nf6 {[%clk 0:02:59]} 2. Nf3 {[%clk 0:02:59]}  d5 {[%clk 0:02:59]} 3. g3 {[%clk 0:02:56]}  c5 {[%clk 0:02:58]} 4. c3 {[%clk 0:02:47]}  Nc6 {[%clk 0:02:54]} 5. Bg2 {[%clk 0:02:46]}  Ne4 {[%clk 0:02:50]} 6. O-O {[%clk 0:02:45]}  g6 {[%clk 0:02:49]} 7. Ne5 {[%clk 0:02:41]}  Bg7 {[%clk 0:02:46]} 8. f3 {[%clk 0:02:38]}  Nd6 {[%clk 0:02:32]} 9. Nxc6 {[%clk 0:02:37]}  bxc6 {[%clk 0:02:33]} 10. dxc5 {[%clk 0:02:37]}  Nc4 {[%clk 0:02:28]} 11. b3 {[%clk 0:02:32]}  Ne5 {[%clk 0:02:28]} 12. Be3 {[%clk 0:02:29]}  h5 {[%clk 0:02:27]} 13. Bd4 {[%clk 0:02:23]}  f6 {[%clk 0:02:15]} 14. Qc2 {[%clk 0:02:06]}  Bf5 {[%clk 0:02:11]} 15. e4 {[%clk 0:02:05]}  dxe4 {[%clk 0:02:11]} 16. fxe4 {[%clk 0:02:02]}  Bg4 {[%clk 0:02:10]} 17. Na3 {[%clk 0:01:37]}  h4 {[%clk 0:02:06]} 18. h3 {[%clk 0:01:36]}  Be6 {[%clk 0:02:03]} 19. g4 {[%clk 0:01:35]}  Qc7 {[%clk 0:01:51]} 20. Rad1 {[%clk 0:01:21]}  O-O-O {[%clk 0:01:43]} 21. Rf2 {[%clk 0:01:08]}  Bxg4 {[%clk 0:01:37]} 22. hxg4 {[%clk 0:01:00]}  h3 {[%clk 0:01:38]} 23. Bf1 {[%clk 0:00:41]}  Nxg4 {[%clk 0:01:30]} 24. Rf3 {[%clk 0:00:07]}  h2+ {[%clk 0:01:24]} 25. Kh1 {[%clk 0:00:07]}  e5 {[%clk 0:01:20]} 26. Bf2 {[%clk 0:00:06]}  Rxd1 {[%clk 0:01:01]} 27. Qxd1 {[%clk 0:00:07]}  f5 {[%clk 0:01:01]} 28. Qe2 {[%clk 0:00:07]}  Qd7 {[%clk 0:00:55]} 29. Nc4 {[%clk 0:00:06]}  Bf8 {[%clk 0:00:43]} 30. Nd6+ {[%clk 0:00:06]}  Bxd6 {[%clk 0:00:43]} 31. cxd6 {[%clk 0:00:06]}  Kb8 {[%clk 0:00:40]} 32. Bg3 {[%clk 0:00:04]}  f4 {[%clk 0:00:34]} 33. Bf2 {[%clk 0:00:04]}  Nxf2+ {[%clk 0:00:24]} 34. Rxf2 {[%clk 0:00:04]}  Qxd6 {[%clk 0:00:24]} 35. Rxh2 {[%clk 0:00:04]}  Rd8 {[%clk 0:00:18]} 36. Rg2 {[%clk 0:00:03]}  Qe6 {[%clk 0:00:16]} 37. Qg4 {[%clk 0:00:03]}  Qxg4 {[%clk 0:00:15]} 38. Rxg4 {[%clk 0:00:02]}  Rd1 {[%clk 0:00:16]} 39. Kg1 {[%clk 0:00:03]}  Rd2 {[%clk 0:00:11]} 40. Rxg6 {[%clk 0:00:03]}  Kc7 {[%clk 0:00:12]} 41. Rg7+ {[%clk 0:00:03]}  Kb6 {[%clk 0:00:12]} 42. b4 {[%clk 0:00:03]}  Rxa2 {[%clk 0:00:11]} 43. c4 {[%clk 0:00:03]}  c5 {[%clk 0:00:10]} 44. Rg6+ {[%clk 0:00:03]}  Kc7 {[%clk 0:00:10]} 45. bxc5 {[%clk 0:00:04]}  Ra5 {[%clk 0:00:07]} 46. Rg7+ {[%clk 0:00:04]}  Kc6 {[%clk 0:00:07]} 47. Bh3 {[%clk 0:00:03]}  Kxc5 {[%clk 0:00:06]} 48. Rd7 {[%clk 0:00:03]}  Kxc4 {[%clk 0:00:06]} 49. Be6+ {[%clk 0:00:03]}  Kc3 {[%clk 0:00:06]} 50. Rd5 {[%clk 0:00:03]}  Ra1+ {[%clk 0:00:03]} 51. Kf2 {[%clk 0:00:03]}  Ra2+ {[%clk 0:00:03]} 52. Kf3 {[%clk 0:00:03]}  Ra1 {[%clk 0:00:03]} 53. Rxe5 {[%clk 0:00:03]}  a5 {[%clk 0:00:03]} 54. Rc5+ {[%clk 0:00:03]}  Kb4 {[%clk 0:00:03]} 55. Rc8 {[%clk 0:00:02]}  a4 {[%clk 0:00:04]} 56. Kxf4 {[%clk 0:00:02]}  a3 {[%clk 0:00:04]} 57. Ke5 {[%clk 0:00:02]}  Rh1 {[%clk 0:00:03]} 58. Rb8+ {[%clk 0:00:02]}  Ka4 {[%clk 0:00:03]} 59. Ra8+ {[%clk 0:00:03]}  Kb4 {[%clk 0:00:04]} 60. Kd4 {[%clk 0:00:02]}  Rd1+ {[%clk 0:00:04]} 61. Ke5 {[%clk 0:00:03]}  Rd2 {[%clk 0:00:04]} 62. Bd5 {[%clk 0:00:03]}  Rb2 {[%clk 0:00:03]} 63. Kd6 {[%clk 0:00:03]}  Rd2 {[%clk 0:00:03]} 64. e5 {[%clk 0:00:04]}  Kb5 {[%clk 0:00:02]} 65. e6 {[%clk 0:00:04]}  Kb6 {[%clk 0:00:03]} 66. Rb8+ {[%clk 0:00:04]}  Ka7 {[%clk 0:00:03]} 67. Ra8+ {[%clk 0:00:05]}  Kb6 {[%clk 0:00:03]} 68. Rxa3 {[%clk 0:00:05]} 1-0


[Site "https://www.chess.com"]

[Event "Titled Tuesday Blitz May 24 Late 2022"]
[White "Sarkar, Justin"]
[Black "Dobre, Claudiu-Cristian"]
[WhiteFideId "2010011"]
[BlackFideId "1211854"]
[WhiteElo "2020"]
[BlackElo "2207"]
[Result "0-1"]
[Round "07"]
[TimeControl "180+1"]
[Date "2022.05.25"]
[WhiteClock "0:00:01"]
[BlackClock "0:00:10"]

1. e4 {[%clk 0:02:48]}  Nc6 {[%clk 0:02:58]} 2. Nf3 {[%clk 0:02:46]}  d6 {[%clk 0:02:57]} 3. d4 {[%clk 0:02:37]}  Nf6 {[%clk 0:02:57]} 4. Nbd2 {[%clk 0:02:29]}  Bg4 {[%clk 0:02:48]} 5. Bb5 {[%clk 0:02:24]}  a6 {[%clk 0:02:47]} 6. Bxc6+ {[%clk 0:02:22]}  bxc6 {[%clk 0:02:48]} 7. h3 {[%clk 0:02:21]}  Bh5 {[%clk 0:02:48]} 8. O-O {[%clk 0:02:13]}  e6 {[%clk 0:02:48]} 9. Re1 {[%clk 0:02:02]}  Be7 {[%clk 0:02:48]} 10. g4 {[%clk 0:01:47]}  Bg6 {[%clk 0:02:47]} 11. Nh4 {[%clk 0:01:46]}  d5 {[%clk 0:02:40]} 12. Nxg6 {[%clk 0:01:25]}  hxg6 {[%clk 0:02:40]} 13. e5 {[%clk 0:01:25]}  Nd7 {[%clk 0:02:39]} 14. Kg2 {[%clk 0:01:17]}  c5 {[%clk 0:02:39]} 15. c3 {[%clk 0:01:10]}  cxd4 {[%clk 0:02:32]} 16. cxd4 {[%clk 0:01:11]}  c5 {[%clk 0:02:32]} 17. f4 {[%clk 0:01:06]}  cxd4 {[%clk 0:02:11]} 18. Nf3 {[%clk 0:01:05]}  Nc5 {[%clk 0:01:56]} 19. Nxd4 {[%clk 0:01:02]}  Rc8 {[%clk 0:01:52]} 20. Be3 {[%clk 0:00:58]}  Qd7 {[%clk 0:01:27]} 21. Rc1 {[%clk 0:00:53]}  O-O {[%clk 0:01:26]} 22. Re2 {[%clk 0:00:45]}  f6 {[%clk 0:00:38]} 23. exf6 {[%clk 0:00:37]}  Bxf6 {[%clk 0:00:37]} 24. Rec2 {[%clk 0:00:29]}  Ne4 {[%clk 0:00:34]} 25. Nf3 {[%clk 0:00:10]}  Rxc2+ {[%clk 0:00:20]} 26. Qxc2 {[%clk 0:00:09]}  Rb8 {[%clk 0:00:18]} 27. b3 {[%clk 0:00:07]}  Bc3 {[%clk 0:00:15]} 28. Ng5 {[%clk 0:00:05]}  Nxg5 {[%clk 0:00:12]} 29. Qxc3 {[%clk 0:00:05]}  Ne4 {[%clk 0:00:13]} 30. Qe5 {[%clk 0:00:05]}  Rc8 {[%clk 0:00:12]} 31. Rxc8+ {[%clk 0:00:04]}  Qxc8 {[%clk 0:00:13]} 32. Bd4 {[%clk 0:00:03]}  Qd7 {[%clk 0:00:12]} 33. f5 {[%clk 0:00:03]}  gxf5 {[%clk 0:00:11]} 34. gxf5 {[%clk 0:00:02]}  exf5 {[%clk 0:00:12]} 35. Kf3 {[%clk 0:00:02]}  Nf6 {[%clk 0:00:12]} 36. Qf4 {[%clk 0:00:01]}  Kf7 {[%clk 0:00:11]} 37. Bxf6 {[%clk 0:00:01]}  Kxf6 {[%clk 0:00:12]} 38. Qd4+ {[%clk 0:00:01]}  Kf7 {[%clk 0:00:12]} 39. Kf4 {[%clk 0:00:01]}  Qe6 {[%clk 0:00:12]} 40. Qa7+ {[%clk 0:00:01]}  Kf6 {[%clk 0:00:10]} 0-1


[Site "https://www.chess.com"]

[Event "Titled Tuesday Blitz May 24 Late 2022"]
[White "Seletsky, Grigory"]
[Black "Lehtosaari, Mauri"]
[WhiteFideId "14112191"]
[BlackFideId "501999"]
[WhiteElo "2492"]
[BlackElo "2476"]
[Result "1-0"]
[Round "07"]
[TimeControl "180+1"]
[Date "2022.05.25"]
[WhiteClock "0:00:02"]
[BlackClock "0:00:06"]

1. e4 {[%clk 0:02:58]}  c5 {[%clk 0:02:59]} 2. Nf3 {[%clk 0:02:57]}  e6 {[%clk 0:02:59]} 3. d4 {[%clk 0:02:57]}  cxd4 {[%clk 0:02:59]} 4. Nxd4 {[%clk 0:02:57]}  Bc5 {[%clk 0:03:00]} 5. Nb3 {[%clk 0:02:56]}  Bb6 {[%clk 0:02:59]} 6. Nc3 {[%clk 0:02:55]}  Ne7 {[%clk 0:02:58]} 7. Bd3 {[%clk 0:02:55]}  O-O {[%clk 0:02:57]} 8. Qe2 {[%clk 0:02:55]}  f5 {[%clk 0:02:54]} 9. Be3 {[%clk 0:02:53]}  f4 {[%clk 0:02:44]} 10. Bxb6 {[%clk 0:02:51]}  Qxb6 {[%clk 0:02:45]} 11. f3 {[%clk 0:02:48]}  Nbc6 {[%clk 0:02:37]} 12. Qf2 {[%clk 0:02:47]}  Qc7 {[%clk 0:02:34]} 13. a3 {[%clk 0:02:46]}  a6 {[%clk 0:02:34]} 14. O-O {[%clk 0:02:45]}  b5 {[%clk 0:02:31]} 15. Rfd1 {[%clk 0:02:37]}  Ne5 {[%clk 0:02:30]} 16. Rac1 {[%clk 0:02:36]}  Bb7 {[%clk 0:02:24]} 17. Qc5 {[%clk 0:02:23]}  Qxc5+ {[%clk 0:01:59]} 18. Nxc5 {[%clk 0:02:22]}  Bc6 {[%clk 0:01:59]} 19. Be2 {[%clk 0:02:19]}  Rfc8 {[%clk 0:01:55]} 20. b4 {[%clk 0:02:09]}  a5 {[%clk 0:01:47]} 21. Nxb5 {[%clk 0:01:53]}  axb4 {[%clk 0:01:44]} 22. axb4 {[%clk 0:01:52]}  Rcb8 {[%clk 0:01:16]} 23. c4 {[%clk 0:01:50]}  Ra2 {[%clk 0:00:59]} 24. Nc3 {[%clk 0:01:49]}  Rb2 {[%clk 0:00:55]} 25. b5 {[%clk 0:01:48]}  Ba8 {[%clk 0:00:50]} 26. Nd3 {[%clk 0:01:43]}  Nxd3 {[%clk 0:00:49]} 27. Rxd3 {[%clk 0:01:32]}  d5 {[%clk 0:00:49]} 28. cxd5 {[%clk 0:01:28]}  exd5 {[%clk 0:00:48]} 29. exd5 {[%clk 0:01:27]}  Nxd5 {[%clk 0:00:38]} 30. Nxd5 {[%clk 0:01:23]}  Bxd5 {[%clk 0:00:35]} 31. Bf1 {[%clk 0:01:01]}  Bf7 {[%clk 0:00:23]} 32. Rd7 {[%clk 0:00:57]}  Be8 {[%clk 0:00:21]} 33. Rd4 {[%clk 0:00:42]}  Bxb5 {[%clk 0:00:20]} 34. Rxf4 {[%clk 0:00:33]}  Bxf1 {[%clk 0:00:19]} 35. Kxf1 {[%clk 0:00:31]}  R2b7 {[%clk 0:00:20]} 36. h4 {[%clk 0:00:28]}  g6 {[%clk 0:00:20]} 37. Kf2 {[%clk 0:00:27]}  Rd8 {[%clk 0:00:20]} 38. Re1 {[%clk 0:00:26]}  Kg7 {[%clk 0:00:20]} 39. Re2 {[%clk 0:00:25]}  Rc7 {[%clk 0:00:20]} 40. Kg3 {[%clk 0:00:23]}  Rdd7 {[%clk 0:00:21]} 41. Rfe4 {[%clk 0:00:19]}  Rb7 {[%clk 0:00:20]} 42. Re5 {[%clk 0:00:18]}  Rf7 {[%clk 0:00:21]} 43. h5 {[%clk 0:00:17]}  gxh5 {[%clk 0:00:20]} 44. Rxh5 {[%clk 0:00:15]}  h6 {[%clk 0:00:21]} 45. Re6 {[%clk 0:00:12]}  Kg8 {[%clk 0:00:08]} 46. Rhxh6 {[%clk 0:00:11]}  Rg7+ {[%clk 0:00:09]} 47. Reg6 {[%clk 0:00:10]}  Kf7 {[%clk 0:00:06]} 48. Rxg7+ {[%clk 0:00:10]}  Kxg7 {[%clk 0:00:07]} 49. Rc6 {[%clk 0:00:09]}  Rd7 {[%clk 0:00:07]} 50. f4 {[%clk 0:00:09]}  Rd2 {[%clk 0:00:08]} 51. Kf3 {[%clk 0:00:08]}  Rd3+ {[%clk 0:00:07]} 52. Kg4 {[%clk 0:00:08]}  Kf7 {[%clk 0:00:08]} 53. g3 {[%clk 0:00:08]}  Ra3 {[%clk 0:00:08]} 54. f5 {[%clk 0:00:08]}  Rb3 {[%clk 0:00:08]} 55. Kf4 {[%clk 0:00:08]}  Ra3 {[%clk 0:00:08]} 56. g4 {[%clk 0:00:08]}  Ra8 {[%clk 0:00:07]} 57. Rc7+ {[%clk 0:00:06]}  Kf8 {[%clk 0:00:06]} 58. Kg5 {[%clk 0:00:06]}  Kg8 {[%clk 0:00:06]} 59. Kg6 {[%clk 0:00:06]}  Rf8 {[%clk 0:00:04]} 60. f6 {[%clk 0:00:06]}  Ra8 {[%clk 0:00:05]} 61. Rg7+ {[%clk 0:00:04]}  Kf8 {[%clk 0:00:04]} 62. Rh7 {[%clk 0:00:03]}  Kg8 {[%clk 0:00:03]} 63. f7+ {[%clk 0:00:02]}  Kf8 {[%clk 0:00:04]} 64. Rh8+ {[%clk 0:00:02]}  Ke7 {[%clk 0:00:05]} 65. Rxa8 {[%clk 0:00:02]}  Ke6 {[%clk 0:00:06]} 66. f8=Q {[%clk 0:00:02]} 1-0


[Site "https://www.chess.com"]